[Event "*** Titled Tuesday Blitz"]
[Site "Chess.com"]
[Date "2019.10.01"]
[Round "7"]
[White "kuli4ik"]
[Black "ChessWarrior7197"]
[Result "1-0"]
[WhiteElo "2795"]
[BlackElo "2901"]
[TimeControl "180+2"]
[EndTime "14:41:19 PDT"]
[Termination "kuli4ik won by resignation"]

1. Nf3 {[%clk 0:02:49.7]} 1... Nf6 {[%clk 0:03:00]} 2. g3 {[%clk 0:02:45.9]}
2... b6 {[%clk 0:02:57.8]} 3. Bg2 {[%clk 0:02:46.7]} 3... Bb7 {[%clk 0:02:59.4]}
4. O-O {[%clk 0:02:48.1]} 4... g6 {[%clk 0:03:00.4]} 5. c4 {[%clk 0:02:47.1]}
5... Bg7 {[%clk 0:03:01.5]} 6. Nc3 {[%clk 0:02:48.2]} 6... O-O {[%clk
0:03:00.1]} 7. Re1 {[%clk 0:02:49.2]} 7... Ne4 {[%clk 0:02:59.1]} 8. Nxe4 {[%clk
0:02:48]} 8... Bxe4 {[%clk 0:02:59.7]} 9. d3 {[%clk 0:02:49.4]} 9... Bb7 {[%clk
0:03:00.9]} 10. Rb1 {[%clk 0:02:41.1]} 10... d5 {[%clk 0:02:55.1]} 11. b3 {[%clk
0:02:40.9]} 11... c5 {[%clk 0:02:54.4]} 12. cxd5 {[%clk 0:02:34.5]} 12... Bxd5
{[%clk 0:02:54.2]} 13. Bb2 {[%clk 0:02:35]} 13... Bxb2 {[%clk 0:02:50.9]} 14.
Rxb2 {[%clk 0:02:35.1]} 14... Nc6 {[%clk 0:02:52]} 15. Rd2 {[%clk 0:02:33]}
15... e5 {[%clk 0:02:51.4]} 16. Qa1 {[%clk 0:02:27.1]} 16... Qd6 {[%clk
0:02:48.8]} 17. Qc3 {[%clk 0:02:23.4]} 17... Rac8 {[%clk 0:02:48.6]} 18. h3
{[%clk 0:02:10.4]} 18... Nd4 {[%clk 0:02:49.8]} 19. Qb2 {[%clk 0:02:01.7]} 19...
Nxf3+ {[%clk 0:02:42.5]} 20. Bxf3 {[%clk 0:02:03.6]} 20... Bxf3 {[%clk
0:02:42.5]} 21. exf3 {[%clk 0:02:05.5]} 21... Rfe8 {[%clk 0:02:41.2]} 22. Qc3
{[%clk 0:01:56.3]} 22... Re6 {[%clk 0:02:41.6]} 23. Re3 {[%clk 0:01:55.2]} 23...
Rce8 {[%clk 0:02:41.4]} 24. Rde2 {[%clk 0:01:56]} 24... Qd5 {[%clk 0:02:39.5]}
25. Qc4 {[%clk 0:01:48.2]} 25... Qxc4 {[%clk 0:02:34.7]} 26. dxc4 {[%clk
0:01:48.8]} 26... f6 {[%clk 0:02:19.3]} 27. f4 {[%clk 0:01:37]} 27... e4 {[%clk
0:02:16.9]} 28. f3 {[%clk 0:01:37.1]} 28... f5 {[%clk 0:02:17.7]} 29. fxe4
{[%clk 0:01:33.7]} 29... fxe4 {[%clk 0:02:18.4]} 30. Rd2 {[%clk 0:01:33.7]}
30... R8e7 {[%clk 0:02:18.7]} 31. Kf2 {[%clk 0:01:33]} 31... Kf7 {[%clk
0:02:19.6]} 32. Rd5 {[%clk 0:01:28.6]} 32... Kf6 {[%clk 0:02:18.6]} 33. Re2
{[%clk 0:01:22.6]} 33... e3+ {[%clk 0:02:06.7]} 34. Kf3 {[%clk 0:01:22]} 34...
Re4 {[%clk 0:02:02.3]} 35. Rd3 {[%clk 0:01:18.6]} 35... h6 {[%clk 0:01:56.5]}
36. Rexe3 {[%clk 0:01:16.5]} 36... Rxe3+ {[%clk 0:01:58]} 37. Rxe3 {[%clk
0:01:17.3]} 37... Rd7 {[%clk 0:01:59.9]} 38. Ke2 {[%clk 0:01:18]} 38... g5
{[%clk 0:01:56.1]} 39. Rd3 {[%clk 0:01:08.9]} 39... Re7+ {[%clk 0:01:55.3]} 40.
Kf3 {[%clk 0:01:10]} 40... gxf4 {[%clk 0:01:56.2]} 41. Kxf4 {[%clk 0:01:10.4]}
41... Re2 {[%clk 0:01:56.8]} 42. Rd6+ {[%clk 0:01:06]} 42... Ke7 {[%clk
0:01:58.3]} 43. Rxh6 {[%clk 0:01:06.4]} 43... Rxa2 {[%clk 0:02:00]} 44. g4
{[%clk 0:01:04.1]} 44... Rb2 {[%clk 0:01:54.1]} 45. h4 {[%clk 0:01:02.6]} 45...
Rxb3 {[%clk 0:01:55.2]} 46. Rh7+ {[%clk 0:00:55.8]} 46... Kf6 {[%clk 0:01:53.6]}
47. g5+ {[%clk 0:00:52.3]} 47... Kg6 {[%clk 0:01:53.8]} 48. Rh6+ {[%clk
0:00:49.9]} 48... Kg7 {[%clk 0:01:53.8]} 49. h5 {[%clk 0:00:48.6]} 49... Rb1
{[%clk 0:01:35]} 50. Rg6+ {[%clk 0:00:46.5]} 50... Kh7 {[%clk 0:01:34.1]} 51.
Rf6 {[%clk 0:00:42.1]} 51... Rh1 {[%clk 0:01:19.7]} 52. Kg4 {[%clk 0:00:35.1]}
52... Rg1+ {[%clk 0:01:05.5]} 53. Kf5 {[%clk 0:00:34.9]} 53... Rf1+ {[%clk
0:00:49.6]} 54. Ke6 {[%clk 0:00:34.6]} 54... Rg1 {[%clk 0:00:50.7]} 55. Rh6+
{[%clk 0:00:21.8]} 55... Kg7 {[%clk 0:00:49.8]} 56. Rg6+ {[%clk 0:00:23.7]}
56... Kf8 {[%clk 0:00:41]} 57. h6 {[%clk 0:00:21.4]} 57... Re1+ {[%clk 0:00:39]}
58. Kd6 {[%clk 0:00:20.8]} 58... Rd1+ {[%clk 0:00:39.3]} 59. Kc6 {[%clk
0:00:21.4]} 59... Rh1 {[%clk 0:00:32.2]} 60. Rg7 {[%clk 0:00:19.1]} 60... Rh4
{[%clk 0:00:15.5]} 61. Rxa7 {[%clk 0:00:18.9]} 61... Kg8 {[%clk 0:00:15.1]} 62.
Kb5 {[%clk 0:00:16]} 62... Rg4 {[%clk 0:00:11.8]} 63. Kxb6 {[%clk 0:00:12.6]}
63... Rxg5 {[%clk 0:00:12.7]} 64. Rg7+ {[%clk 0:00:13.3]} 1-0

[Event "*** Titled Tuesday Blitz"]
[Site "Chess.com"]
[Date "2019.10.01"]
[Round "7"]
[White "ahkashefi2800"]
[Black "Tolya2"]
[Result "1/2-1/2"]
[WhiteElo "2184"]
[BlackElo "2385"]
[TimeControl "180+2"]
[EndTime "14:41:31 PDT"]
[Termination "Game drawn by 50-move rule"]

1. d4 {[%clk 0:02:57.7]} 1... d5 {[%clk 0:02:59.6]} 2. c4 {[%clk 0:02:55.3]}
2... dxc4 {[%clk 0:03:00.3]} 3. Nc3 {[%clk 0:02:52.7]} 3... a6 {[%clk
0:03:00.6]} 4. a4 {[%clk 0:00:22.1]} 4... e6 {[%clk 0:02:58]} 5. Nf3 {[%clk
0:00:22.5]} 5... c5 {[%clk 0:02:55.7]} 6. d5 {[%clk 0:00:22]} 6... Nf6 {[%clk
0:02:53.8]} 7. e4 {[%clk 0:00:22.6]} 7... exd5 {[%clk 0:02:54.5]} 8. exd5 {[%clk
0:00:23.1]} 8... Bd6 {[%clk 0:02:53.9]} 9. Bxc4 {[%clk 0:00:24]} 9... O-O {[%clk
0:02:54.6]} 10. O-O {[%clk 0:00:24.5]} 10... Bg4 {[%clk 0:02:54.8]} 11. h3
{[%clk 0:00:25.3]} 11... Bh5 {[%clk 0:02:54.9]} 12. Bg5 {[%clk 0:00:16.4]} 12...
h6 {[%clk 0:02:51.8]} 13. Bh4 {[%clk 0:00:16.7]} 13... Bg6 {[%clk 0:02:50.5]}
14. Bd3 {[%clk 0:00:16.4]} 14... Bxd3 {[%clk 0:02:46.9]} 15. Qxd3 {[%clk
0:00:18.3]} 15... Nbd7 {[%clk 0:02:47.9]} 16. Rfe1 {[%clk 0:00:18.7]} 16... Qc7
{[%clk 0:02:44.5]} 17. Ne4 {[%clk 0:00:14.3]} 17... Nxe4 {[%clk 0:02:42]} 18.
Qxe4 {[%clk 0:00:16.2]} 18... b5 {[%clk 0:02:22.7]} 19. axb5 {[%clk 0:00:14.5]}
19... axb5 {[%clk 0:02:22.9]} 20. Rxa8 {[%clk 0:00:11.5]} 20... Rxa8 {[%clk
0:02:23.1]} 21. Qf5 {[%clk 0:00:11.1]} 21... Nf8 {[%clk 0:02:19.6]} 22. b3
{[%clk 0:00:09.2]} 22... c4 {[%clk 0:02:19.2]} 23. bxc4 {[%clk 0:00:08.9]} 23...
bxc4 {[%clk 0:02:18.8]} 24. Qc2 {[%clk 0:00:07.7]} 24... Qc5 {[%clk 0:02:14.7]}
25. Kh1 {[%clk 0:00:05.2]} 25... c3 {[%clk 0:02:09]} 26. Bg3 {[%clk 0:00:03.6]}
26... Bxg3 {[%clk 0:02:06.7]} 27. fxg3 {[%clk 0:00:05.5]} 27... Rc8 {[%clk
0:02:06.1]} 28. Rd1 {[%clk 0:00:05.8]} 28... Qd6 {[%clk 0:02:06.3]} 29. Kh2
{[%clk 0:00:04.4]} 29... Ng6 {[%clk 0:02:04.3]} 30. Rd3 {[%clk 0:00:04]} 30...
h5 {[%clk 0:02:00.4]} 31. Rxc3 {[%clk 0:00:04.1]} 31... Rxc3 {[%clk 0:01:56.8]}
32. Qxc3 {[%clk 0:00:06]} 32... h4 {[%clk 0:01:55.6]} 33. Qc8+ {[%clk 0:00:03]}
33... Kh7 {[%clk 0:01:55.3]} 34. Qg4 {[%clk 0:00:03.9]} 34... hxg3+ {[%clk
0:01:54.7]} 35. Qxg3 {[%clk 0:00:04.3]} 35... Qxd5 {[%clk 0:01:51.7]} 36. Ng5+
{[%clk 0:00:02.6]} 36... Kg8 {[%clk 0:01:51.4]} 37. Qb8+ {[%clk 0:00:03.8]}
37... Nf8 {[%clk 0:01:52.3]} 38. Nf3 {[%clk 0:00:04.5]} 38... g6 {[%clk
0:01:48.5]} 39. h4 {[%clk 0:00:05.1]} 39... Kg7 {[%clk 0:01:49]} 40. Qe5+ {[%clk
0:00:03.1]} 40... Qxe5+ {[%clk 0:01:48]} 41. Nxe5 {[%clk 0:00:05]} 41... Ne6
{[%clk 0:01:48.8]} 42. g3 {[%clk 0:00:05.5]} 42... f5 {[%clk 0:01:48.9]} 43. Nf3
{[%clk 0:00:04.7]} 43... Kf6 {[%clk 0:01:49.6]} 44. Kh3 {[%clk 0:00:04.4]} 44...
Nc5 {[%clk 0:01:49.5]} 45. Ng5 {[%clk 0:00:04.4]} 45... Nd3 {[%clk 0:01:48.2]}
46. Nh7+ {[%clk 0:00:04.3]} 46... Kg7 {[%clk 0:01:46.4]} 47. Ng5 {[%clk
0:00:06.2]} 47... Nf2+ {[%clk 0:01:43.9]} 48. Kg2 {[%clk 0:00:07.1]} 48... Ng4
{[%clk 0:01:44.7]} 49. Kf3 {[%clk 0:00:07.7]} 49... Kf6 {[%clk 0:01:45.6]} 50.
Kf4 {[%clk 0:00:08.7]} 50... Nf2 {[%clk 0:01:45.2]} 51. Nh7+ {[%clk 0:00:08.4]}
51... Kg7 {[%clk 0:01:46.2]} 52. Ng5 {[%clk 0:00:09.5]} 52... Kf6 {[%clk
0:01:46.7]} 53. Kf3 {[%clk 0:00:06.3]} 53... Nd3 {[%clk 0:01:45.9]} 54. Ke3
{[%clk 0:00:06.8]} 54... Nc5 {[%clk 0:01:44.6]} 55. Nf3 {[%clk 0:00:07.4]} 55...
Ne6 {[%clk 0:01:44.5]} 56. Nd4 {[%clk 0:00:04.5]} 56... Ng7 {[%clk 0:01:41.7]}
57. Kf4 {[%clk 0:00:04.5]} 57... Nh5+ {[%clk 0:01:42.3]} 58. Kf3 {[%clk
0:00:05.3]} 58... Ke5 {[%clk 0:01:43]} 59. Nc6+ {[%clk 0:00:05.8]} 59... Kf6
{[%clk 0:01:43.1]} 60. Nb4 {[%clk 0:00:05.1]} 60... Ng7 {[%clk 0:01:43.3]} 61.
Nd5+ {[%clk 0:00:05.4]} 61... Ke5 {[%clk 0:01:43.1]} 62. Ne7 {[%clk 0:00:05.2]}
62... Kf6 {[%clk 0:01:43.8]} 63. Nc6 {[%clk 0:00:05.2]} 63... Ne6 {[%clk
0:01:43.5]} 64. Nb4 {[%clk 0:00:05.8]} 64... Nd4+ {[%clk 0:01:43.5]} 65. Ke3
{[%clk 0:00:05.6]} 65... Ne6 {[%clk 0:01:41.5]} 66. Nd5+ {[%clk 0:00:06.1]}
66... Ke5 {[%clk 0:01:41]} 67. Ne7 {[%clk 0:00:06.5]} 67... Kf6 {[%clk
0:01:41.9]} 68. Nd5+ {[%clk 0:00:06.9]} 68... Ke5 {[%clk 0:01:42.8]} 69. Nf4
{[%clk 0:00:06.5]} 69... Nf8 {[%clk 0:01:40.8]} 70. Nd3+ {[%clk 0:00:06.1]}
70... Kf6 {[%clk 0:01:41.2]} 71. Kf4 {[%clk 0:00:08]} 71... Ne6+ {[%clk
0:01:42.2]} 72. Ke3 {[%clk 0:00:09.1]} 72... Ng7 {[%clk 0:01:42.6]} 73. Nc5
{[%clk 0:00:07.7]} 73... Nh5 {[%clk 0:01:43.2]} 74. Kf3 {[%clk 0:00:07.8]} 74...
Ke5 {[%clk 0:01:44.1]} 75. Nd3+ {[%clk 0:00:07.2]} 75... Kf6 {[%clk 0:01:43.6]}
76. Nf4 {[%clk 0:00:08.2]} 76... Ng7 {[%clk 0:01:44.5]} 77. Nd5+ {[%clk
0:00:08.8]} 77... Kf7 {[%clk 0:01:43.4]} 78. Kf4 {[%clk 0:00:08.3]} 78... Nh5+
{[%clk 0:01:43.7]} 79. Kf3 {[%clk 0:00:05.4]} 79... Ng7 {[%clk 0:01:40.9]} 80.
Kf4 {[%clk 0:00:05]} 80... Nh5+ {[%clk 0:01:41.5]} 81. Kf3 {[%clk 0:00:02.8]}
81... Kg7 {[%clk 0:01:42]} 82. Nf4 {[%clk 0:00:03.3]} 82... Nf6 {[%clk
0:01:42.9]} 83. Ne6+ {[%clk 0:00:04.3]} 83... Kf7 {[%clk 0:01:43.9]} 84. Ng5+
{[%clk 0:00:06.2]} 84... Kg7 {[%clk 0:01:44]} 85. Kf4 {[%clk 0:00:08.1]} 85...
Nh5+ {[%clk 0:01:44.1]} 86. Kf3 {[%clk 0:00:07.4]} 86... Kf6 {[%clk 0:01:45.1]}
87. Nh3 {[%clk 0:00:09.3]} 87... Ng7 {[%clk 0:01:44.4]} 88. Nf4 {[%clk
0:00:09.3]} 88... Ne8 {[%clk 0:01:44.6]} 89. Nd5+ {[%clk 0:00:10]} 89... Ke5
{[%clk 0:01:44]} 90. Ne3 {[%clk 0:00:10.5]} 90... Nf6 {[%clk 0:01:42.5]} 91.
Nc4+ {[%clk 0:00:11.4]} 91... Ke6 {[%clk 0:01:42.5]} 92. Nd2 {[%clk 0:00:09.8]}
92... Nh5 {[%clk 0:01:41.9]} 1/2-1/2

[Event "*** Titled Tuesday Blitz"]
[Site "Chess.com"]
[Date "2019.10.01"]
[Round "7"]
[White "mbojan"]
[Black "Jumbo"]
[Result "1/2-1/2"]
[WhiteElo "2577"]
[BlackElo "2794"]
[TimeControl "180+2"]
[EndTime "14:41:46 PDT"]
[Termination "Game drawn by repetition"]

1. e4 {[%clk 0:03:01.9]} 1... g6 {[%clk 0:03:00.3]} 2. d4 {[%clk 0:02:54.5]}
2... Bg7 {[%clk 0:03:01.4]} 3. Nc3 {[%clk 0:02:56.1]} 3... d6 {[%clk 0:03:01.6]}
4. f4 {[%clk 0:02:57.5]} 4... Nf6 {[%clk 0:03:01.9]} 5. Nf3 {[%clk 0:02:58.4]}
5... c5 {[%clk 0:02:55.8]} 6. d5 {[%clk 0:02:47.6]} 6... O-O {[%clk 0:02:51.7]}
7. Bc4 {[%clk 0:02:45]} 7... Na6 {[%clk 0:02:43.4]} 8. O-O {[%clk 0:02:43.6]}
8... Nc7 {[%clk 0:02:44.4]} 9. a4 {[%clk 0:02:44.7]} 9... e6 {[%clk 0:02:40]}
10. dxe6 {[%clk 0:02:38.9]} 10... Bxe6 {[%clk 0:02:39.1]} 11. Bxe6 {[%clk
0:02:23.8]} 11... Nxe6 {[%clk 0:02:07]} 12. f5 {[%clk 0:02:18.7]} 12... Nd4
{[%clk 0:02:05.8]} 13. Bg5 {[%clk 0:02:03]} 13... h6 {[%clk 0:01:43.4]} 14. Bxf6
{[%clk 0:01:58.9]} 14... Bxf6 {[%clk 0:01:45.3]} 15. Nd5 {[%clk 0:02:00.4]}
15... Nxf3+ {[%clk 0:01:43]} 16. Qxf3 {[%clk 0:02:02.3]} 16... Bxb2 {[%clk
0:01:44.3]} 17. Rab1 {[%clk 0:02:00.4]} 17... Bd4+ {[%clk 0:01:45]} 18. Kh1
{[%clk 0:02:02]} 18... b6 {[%clk 0:01:46]} 19. Qg4 {[%clk 0:01:41.3]} 19... Qg5
{[%clk 0:01:44]} 20. Qxg5 {[%clk 0:01:22.4]} 20... hxg5 {[%clk 0:01:44.7]} 21.
f6 {[%clk 0:01:23.9]} 21... Rae8 {[%clk 0:01:35]} 22. c3 {[%clk 0:01:13.9]}
22... Be5 {[%clk 0:01:29.8]} 23. g4 {[%clk 0:01:11.9]} 23... Re6 {[%clk
0:01:14.2]} 24. Rf3 {[%clk 0:01:03.8]} 24... Rb8 {[%clk 0:01:09.7]} 25. Rb5
{[%clk 0:00:38.3]} 25... Bf4 {[%clk 0:01:03]} 26. a5 {[%clk 0:00:35.7]} 26...
Rxe4 {[%clk 0:01:02.9]} 27. axb6 {[%clk 0:00:33.6]} 27... axb6 {[%clk
0:01:04.8]} 28. Ne7+ {[%clk 0:00:31.9]} 28... Rxe7 {[%clk 0:00:53]} 29. fxe7
{[%clk 0:00:33.8]} 29... Re8 {[%clk 0:00:51.6]} 30. Rxb6 {[%clk 0:00:32.4]}
30... Rxe7 {[%clk 0:00:52.9]} 31. h3 {[%clk 0:00:31.6]} 31... Re2 {[%clk
0:00:51]} 32. Rb7 {[%clk 0:00:29.7]} 32... Kg7 {[%clk 0:00:50.4]} 33. Rd7 {[%clk
0:00:30.6]} 33... Kf8 {[%clk 0:00:47.3]} 34. Kg1 {[%clk 0:00:29.6]} 34... Rc2
{[%clk 0:00:42.3]} 35. h4 {[%clk 0:00:28.2]} 35... Ke8 {[%clk 0:00:18.2]} 36.
Ra7 {[%clk 0:00:25.1]} 36... Re2 {[%clk 0:00:14.6]} 37. hxg5 {[%clk 0:00:21.3]}
37... Re4 {[%clk 0:00:13.4]} 38. Kf1 {[%clk 0:00:16.1]} 38... Kf8 {[%clk
0:00:13.8]} 39. Rb7 {[%clk 0:00:16.7]} 39... Kg8 {[%clk 0:00:14.1]} 40. Kf2
{[%clk 0:00:17.8]} 40... Kg7 {[%clk 0:00:15]} 41. Rd7 {[%clk 0:00:18.7]} 41...
Kg8 {[%clk 0:00:14.6]} 42. Kf1 {[%clk 0:00:20]} 42... Kf8 {[%clk 0:00:15.4]} 43.
Kf2 {[%clk 0:00:21.3]} 43... Rc4 {[%clk 0:00:11.5]} 44. Ke2 {[%clk 0:00:19.7]}
44... Ke8 {[%clk 0:00:12.7]} 45. Rb7 {[%clk 0:00:20.5]} 45... Re4+ {[%clk
0:00:11]} 46. Kd3 {[%clk 0:00:21.6]} 46... d5 {[%clk 0:00:12.6]} 47. Rb5 {[%clk
0:00:11.3]} 47... Bd6 {[%clk 0:00:10.8]} 48. Rb7 {[%clk 0:00:10.3]} 48... c4+
{[%clk 0:00:11.1]} 49. Kc2 {[%clk 0:00:11.4]} 49... Re7 {[%clk 0:00:10.8]} 50.
Rxe7+ {[%clk 0:00:12]} 50... Bxe7 {[%clk 0:00:11.8]} 51. Re3 {[%clk 0:00:12.5]}
51... Kd7 {[%clk 0:00:12.7]} 52. Kd1 {[%clk 0:00:13.1]} 52... Kd6 {[%clk
0:00:12.4]} 53. Rf3 {[%clk 0:00:14.6]} 53... Ke6 {[%clk 0:00:13.7]} 54. Re3+
{[%clk 0:00:13.2]} 54... Kd6 {[%clk 0:00:14.9]} 55. Rf3 {[%clk 0:00:14.8]} 55...
Ke6 {[%clk 0:00:14.8]} 56. Re3+ {[%clk 0:00:16.4]} 56... Kd7 {[%clk 0:00:16]}
57. Ke2 {[%clk 0:00:14.8]} 57... Kd6 {[%clk 0:00:11]} 58. Kf3 {[%clk 0:00:15.8]}
58... Bxg5 {[%clk 0:00:11.7]} 59. Re8 {[%clk 0:00:16.9]} 59... Bf6 {[%clk
0:00:13]} 60. Re3 {[%clk 0:00:13.6]} 60... Be5 {[%clk 0:00:13]} 61. Ke2 {[%clk
0:00:13.6]} 61... Ke6 {[%clk 0:00:13.5]} 62. Rf3 {[%clk 0:00:14.9]} 62... f6
{[%clk 0:00:13.7]} 63. Kd2 {[%clk 0:00:16.1]} 63... Kf7 {[%clk 0:00:12.9]} 64.
Rh3 {[%clk 0:00:17.4]} 64... Kg7 {[%clk 0:00:14.3]} 65. Rh1 {[%clk 0:00:18.9]}
65... g5 {[%clk 0:00:12.9]} 66. Ra1 {[%clk 0:00:19]} 66... Kg6 {[%clk
0:00:11.9]} 67. Ra6 {[%clk 0:00:20]} 67... d4 {[%clk 0:00:10.3]} 68. cxd4 {[%clk
0:00:19.4]} 68... Bxd4 {[%clk 0:00:12.2]} 69. Rc6 {[%clk 0:00:20.4]} 69... c3+
{[%clk 0:00:13.4]} 70. Kd3 {[%clk 0:00:22]} 70... Be5 {[%clk 0:00:14.8]} 71. Ke4
{[%clk 0:00:23.4]} 71... Kf7 {[%clk 0:00:16.4]} 72. Rc4 {[%clk 0:00:24.8]} 72...
Ke6 {[%clk 0:00:17.4]} 73. Rc8 {[%clk 0:00:26]} 73... Kd6 {[%clk 0:00:18.4]} 74.
Rc4 {[%clk 0:00:27.5]} 74... Kd7 {[%clk 0:00:19]} 75. Rc5 {[%clk 0:00:28.8]}
75... Ke6 {[%clk 0:00:18.1]} 76. Rc6+ {[%clk 0:00:29.7]} 76... Kd7 {[%clk
0:00:19.4]} 77. Kd5 {[%clk 0:00:30.5]} 77... Ke7 {[%clk 0:00:19.8]} 78. Rc4
{[%clk 0:00:31.3]} 78... Kd7 {[%clk 0:00:21]} 79. Rc6 {[%clk 0:00:32.6]} 79...
Ke7 {[%clk 0:00:21.8]} 80. Rc4 {[%clk 0:00:34]} 80... Kf7 {[%clk 0:00:19.4]} 81.
Ke4 {[%clk 0:00:32.6]} 81... Ke6 {[%clk 0:00:19.3]} 82. Rc6+ {[%clk 0:00:33.7]}
82... Kd7 {[%clk 0:00:20.9]} 83. Kd5 {[%clk 0:00:35.1]} 1/2-1/2

[Event "*** Titled Tuesday Blitz"]
[Site "Chess.com"]
[Date "2019.10.01"]
[Round "7"]
[White "Grieve72"]
[Black "TheFireChess"]
[Result "1/2-1/2"]
[WhiteElo "2340"]
[BlackElo "2504"]
[TimeControl "180+2"]
[EndTime "14:41:47 PDT"]
[Termination "Game drawn by repetition"]

1. e4 {[%clk 0:03:01.9]} 1... c6 {[%clk 0:02:58.7]} 2. d4 {[%clk 0:03:02.2]}
2... d5 {[%clk 0:03:00.6]} 3. e5 {[%clk 0:03:03.7]} 3... c5 {[%clk 0:03:01.8]}
4. dxc5 {[%clk 0:03:03.6]} 4... Nc6 {[%clk 0:03:03.1]} 5. a3 {[%clk 0:03:04.2]}
5... a5 {[%clk 0:03:02.2]} 6. Nc3 {[%clk 0:02:40.9]} 6... d4 {[%clk 0:02:55.3]}
7. Nb5 {[%clk 0:02:35.8]} 7... Nh6 {[%clk 0:02:42]} 8. Nf3 {[%clk 0:02:26.8]}
8... Bg4 {[%clk 0:02:39.6]} 9. h3 {[%clk 0:02:10.2]} 9... Bxf3 {[%clk
0:02:34.1]} 10. Qxf3 {[%clk 0:02:12.1]} 10... a4 {[%clk 0:02:32.4]} 11. Bd3
{[%clk 0:01:39.1]} 11... Rc8 {[%clk 0:01:55.3]} 12. Bxh6 {[%clk 0:01:21.1]}
12... gxh6 {[%clk 0:01:54.5]} 13. O-O {[%clk 0:01:13.6]} 13... Nxe5 {[%clk
0:01:42.5]} 14. Qxb7 {[%clk 0:01:07.5]} 14... Bg7 {[%clk 0:01:24.5]} 15. Rfe1
{[%clk 0:00:34.8]} 15... O-O {[%clk 0:01:15]} 16. Rxe5 {[%clk 0:00:31.7]} 16...
Bxe5 {[%clk 0:01:12.8]} 17. Qe4 {[%clk 0:00:33.2]} 17... Re8 {[%clk 0:01:10.5]}
18. Qxe5 {[%clk 0:00:28.4]} 18... Qd7 {[%clk 0:00:58.1]} 19. Qe4 {[%clk
0:00:17.8]} 19... f5 {[%clk 0:00:57.3]} 20. Qxf5 {[%clk 0:00:18.9]} 20... Qxf5
{[%clk 0:00:58.8]} 21. Bxf5 {[%clk 0:00:20.8]} 21... Rxc5 {[%clk 0:01:00.2]} 22.
Bd3 {[%clk 0:00:21.6]} 22... e5 {[%clk 0:00:58.8]} 23. f3 {[%clk 0:00:22.4]}
23... Kg7 {[%clk 0:00:59.3]} 24. Re1 {[%clk 0:00:23.4]} 24... Rb8 {[%clk
0:00:53.2]} 25. Nd6 {[%clk 0:00:12.1]} 25... Rxb2 {[%clk 0:00:50.5]} 26. f4
{[%clk 0:00:07.6]} 26... exf4 {[%clk 0:00:47.2]} 27. Re7+ {[%clk 0:00:08.5]}
27... Kf6 {[%clk 0:00:36.7]} 28. Rxh7 {[%clk 0:00:09.1]} 28... Re5 {[%clk
0:00:33.3]} 29. Nc4 {[%clk 0:00:08]} 29... Rb1+ {[%clk 0:00:33.4]} 30. Kf2
{[%clk 0:00:09.5]} 30... Ree1 {[%clk 0:00:27.5]} 31. Rxh6+ {[%clk 0:00:09.4]}
31... Kg7 {[%clk 0:00:28.5]} 32. Rg6+ {[%clk 0:00:10.4]} 32... Kf7 {[%clk
0:00:29.6]} 33. Ra6 {[%clk 0:00:08.3]} 33... Ra1 {[%clk 0:00:30.1]} 34. Rxa4
{[%clk 0:00:08.9]} 34... Rec1 {[%clk 0:00:29.7]} 35. Ra6 {[%clk 0:00:09]} 35...
Ke7 {[%clk 0:00:29.8]} 36. a4 {[%clk 0:00:07.3]} 36... Ra2 {[%clk 0:00:29.1]}
37. Kf3 {[%clk 0:00:06.7]} 37... Rca1 {[%clk 0:00:20.3]} 38. a5 {[%clk
0:00:07.7]} 38... Rg1 {[%clk 0:00:21.5]} 39. Rd6 {[%clk 0:00:05.4]} 39... Ra4
{[%clk 0:00:18.8]} 40. Rxd4 {[%clk 0:00:05.8]} 40... Rc1 {[%clk 0:00:18.4]} 41.
Rxf4 {[%clk 0:00:06.3]} 41... Rca1 {[%clk 0:00:18.9]} 42. h4 {[%clk 0:00:07]}
42... Rh1 {[%clk 0:00:18.7]} 43. g3 {[%clk 0:00:07]} 43... Rha1 {[%clk
0:00:17.9]} 44. h5 {[%clk 0:00:07.7]} 44... Rh1 {[%clk 0:00:18.8]} 45. Kg4
{[%clk 0:00:08.7]} 45... Rb4 {[%clk 0:00:20.1]} 46. Re4+ {[%clk 0:00:08.3]}
46... Kf8 {[%clk 0:00:20.7]} 47. a6 {[%clk 0:00:07.1]} 47... Ra4 {[%clk
0:00:21.3]} 48. Ne5 {[%clk 0:00:05.5]} 48... Ra5 {[%clk 0:00:22.4]} 49. Kf4
{[%clk 0:00:04.2]} 49... Rxh5 {[%clk 0:00:22.6]} 50. Ng6+ {[%clk 0:00:03.1]}
50... Kg7 {[%clk 0:00:23.1]} 51. Re6 {[%clk 0:00:03.9]} 51... Rhd5 {[%clk
0:00:22]} 52. Be4 {[%clk 0:00:04]} 52... Rd4 {[%clk 0:00:22.8]} 53. Ne5 {[%clk
0:00:04.4]} 53... Raa4 {[%clk 0:00:22.6]} 54. Nc6 {[%clk 0:00:05.6]} 54... Rdc4
{[%clk 0:00:23.9]} 55. Kf5 {[%clk 0:00:04.9]} 55... Rxa6 {[%clk 0:00:24.1]} 56.
Ne5 {[%clk 0:00:03.3]} 56... Ra5 {[%clk 0:00:24.1]} 57. Re7+ {[%clk 0:00:03.2]}
57... Kf8 {[%clk 0:00:24.8]} 58. Kf6 {[%clk 0:00:03.7]} 58... Ra6+ {[%clk
0:00:24]} 59. Bc6 {[%clk 0:00:04.1]} 59... Rcxc6+ {[%clk 0:00:25.1]} 60. Nxc6
{[%clk 0:00:06]} 60... Rxc6+ {[%clk 0:00:27]} 61. Re6 {[%clk 0:00:07.9]} 61...
Rxc2 {[%clk 0:00:28.5]} 62. g4 {[%clk 0:00:07]} 62... Rf2+ {[%clk 0:00:29.6]}
63. Kg6 {[%clk 0:00:08]} 63... Ra2 {[%clk 0:00:30.1]} 64. g5 {[%clk 0:00:08.8]}
64... Ra8 {[%clk 0:00:31]} 65. Kf6 {[%clk 0:00:09.7]} 65... Kg8 {[%clk
0:00:31.8]} 66. Rb6 {[%clk 0:00:10.3]} 66... Rf8+ {[%clk 0:00:33.1]} 67. Kg6
{[%clk 0:00:11.1]} 67... Rc8 {[%clk 0:00:34.5]} 68. Kh6 {[%clk 0:00:07.2]} 68...
Rd8 {[%clk 0:00:35.3]} 69. g6 {[%clk 0:00:08.5]} 69... Ra8 {[%clk 0:00:36.7]}
70. Re6 {[%clk 0:00:09.6]} 70... Rc8 {[%clk 0:00:37.8]} 71. Re7 {[%clk
0:00:10.2]} 71... Ra8 {[%clk 0:00:35.2]} 72. Rg7+ {[%clk 0:00:10.4]} 72... Kh8
{[%clk 0:00:36.5]} 73. Rh7+ {[%clk 0:00:11.7]} 73... Kg8 {[%clk 0:00:37.8]} 74.
Rb7 {[%clk 0:00:11.6]} 74... Rc8 {[%clk 0:00:38]} 75. Re7 {[%clk 0:00:12]} 75...
Ra8 {[%clk 0:00:39]} 76. Kg5 {[%clk 0:00:13.3]} 76... Ra5+ {[%clk 0:00:39.6]}
77. Kf6 {[%clk 0:00:14.5]} 77... Ra6+ {[%clk 0:00:40.9]} 78. Re6 {[%clk
0:00:16]} 78... Ra8 {[%clk 0:00:42.1]} 79. Rd6 {[%clk 0:00:14.9]} 79... Rf8+
{[%clk 0:00:43.3]} 80. Kg5 {[%clk 0:00:08.8]} 80... Kg7 {[%clk 0:00:43.9]} 81.
Rd7+ {[%clk 0:00:08.9]} 81... Kg8 {[%clk 0:00:45]} 82. Ra7 {[%clk 0:00:08.4]}
82... Rb8 {[%clk 0:00:45.8]} 83. Kh6 {[%clk 0:00:09.4]} 83... Rc8 {[%clk
0:00:47]} 84. Rb7 {[%clk 0:00:10.1]} 84... Ra8 {[%clk 0:00:47.8]} 85. Rg7+
{[%clk 0:00:09.1]} 85... Kh8 {[%clk 0:00:48.7]} 86. Re7 {[%clk 0:00:09.1]} 86...
Kg8 {[%clk 0:00:48.7]} 1/2-1/2